[Event "ETCC Women 2013"]
[Site "Warsaw"]
[Date "2013.11.12"]
[Round "5"]
[White "Arabidze, Meri"]
[Black "Mkrtchian, Lilit"]
[Result "1/2-1/2"]
[ECO "E21"]
[WhiteElo "2374"]
[BlackElo "2447"]
[PlyCount "97"]
[EventDate "2013.??.??"]
[EventCountry "POL"]
[WhiteTeam "Georgia"]
[BlackTeam "Armenia"]
[WhiteTeamCountry "GEO"]
[BlackTeamCountry "ARM"]
[TimeControl "40/5400+30:1800+30"]

1. d4 {[%emt 0:00:00]} Nf6 {[%emt 0:00:00]} 2. c4 {[%emt 0:00:00]} e6 {[%emt 0:
00:00]} 3. Nf3 {[%emt 0:00:00]} b6 {[%emt 0:00:00]} 4. Nc3 {[%emt 0:00:07]} Bb4
{[%emt 0:00:33]} 5. e3 {[%emt 0:00:32]} O-O {[%emt 0:01:56]} 6. Bd3 {[%emt 0:
00:55]} d5 {[%emt 0:00:17]} 7. cxd5 {[%emt 0:02:52]} exd5 {[%emt 0:00:05]} 8.
O-O {[%emt 0:00:15]} Ba6 {[%emt 0:02:36]} 9. Bxa6 {[%emt 0:15:12]} Nxa6 {[%emt
0:00:04]} 10. a3 {[%emt 0:00:21]} Bxc3 {[%emt 0:02:08]} 11. bxc3 {[%emt 0:00:
02]} c5 {[%emt 0:00:14]} 12. a4 {[%emt 0:03:06]} Re8 {[%emt 0:01:35]} 13. Ba3 {
[%emt 0:04:37]} c4 {[%emt 0:10:23]} 14. Qc2 {[%emt 0:08:40]} Ne4 {[%emt 0:02:
17]} 15. Rae1 {[%emt 0:00:49]} Nb8 {[%emt 0:04:37]} 16. g3 {[%emt 0:01:18]} g6
{[%emt 0:25:20]} 17. Nh4 {[%emt 0:01:31]} f5 {[%emt 0:00:20]} 18. f3 {[%emt 0:
01:19]} Nf6 {[%emt 0:00:04]} 19. Nxf5 {[%emt 0:03:54]} gxf5 {[%emt 0:00:16]}
20. Qxf5 {[%emt 0:00:02]} Nc6 {[%emt 0:13:27]} 21. e4 {[%emt 0:09:05]} Kg7 {
[%emt 0:05:52]} 22. e5 {[%emt 0:03:34]} Ng8 {[%emt 0:00:51]} 23. Qg4+ {[%emt 0:
02:39]} Kh8 {[%emt 0:00:38]} 24. f4 {[%emt 0:00:23]} Qc7 {[%emt 0:01:27]} 25.
f5 {[%emt 0:05:46]} Qf7 {[%emt 0:00:50]} 26. Qf3 {[%emt 0:08:45]} Rad8 {[%emt
0:00:27]} 27. Bc1 {[%emt 0:00:29]} Nce7 {[%emt 0:09:56]} 28. g4 {[%emt 0:04:25]
} Rf8 {[%emt 0:06:42]} 29. Qg3 {[%emt 0:03:37]} Qg7 {[%emt 0:03:30]} 30. f6 {
[%emt 0:06:54]} Nxf6 {[%emt 0:00:23]} 31. exf6 {[%emt 0:00:02]} Rxf6 {[%emt 0:
00:05]} 32. Rxf6 {[%emt 0:05:15]} Qxf6 {[%emt 0:00:03]} 33. g5 {[%emt 0:00:10]}
Qg7 {[%emt 0:03:57]} 34. Qc7 {[%emt 0:00:12]} Re8 {[%emt 0:00:39]} 35. Qxa7 {
[%emt 0:03:11]} Qf7 {[%emt 0:02:20]} 36. Qxb6 {[%emt 0:00:43]} Ng8 {[%emt 0:01:
08]} 37. Rf1 {[%emt 0:04:17]} Qd7 {[%emt 0:01:54]} 38. Bf4 {[%emt 0:02:24]}
Qg4+ {[%emt 0:00:07]} 39. Kh1 {[%emt 0:01:06]} Re2 {[%emt 0:01:31]} 40. Be5+ {
[%emt 0:00:00]} Rxe5 {[%emt 0:00:00]} 41. dxe5 {[%emt 0:01:11]} Qe4+ {[%emt 0:
00:20]} 42. Kg1 {[%emt 0:05:18]} Qg4+ {[%emt 0:00:08]} 43. Kf2 {[%emt 0:03:22]}
Qf5+ {[%emt 0:00:35]} 44. Ke1 {[%emt 0:06:18]} Qe4+ {[%emt 0:00:11]} 45. Kf2 {
[%emt 0:01:48]} Qf5+ {[%emt 0:00:05]} 46. Kg1 {[%emt 0:01:11]} Qg4+ {[%emt 0:
00:16]} 47. Kh1 {[%emt 0:00:26]} Qe4+ {[%emt 0:00:05]} 48. Kg1 {[%emt 0:00:04]}
Qg4+ {[%emt 0:00:04]} 49. Kh1 {[%emt 0:00:12]} 1/2-1/2

[Event "ETCC Women 2013"]
[Site "Warsaw"]
[Date "2013.11.12"]
[Round "5"]
[White "Bartel, Marta"]
[Black "Shvayger, Yuliya"]
[Result "1/2-1/2"]
[ECO "D70"]
[WhiteElo "2308"]
[BlackElo "2294"]
[PlyCount "145"]
[EventDate "2013.??.??"]
[EventCountry "POL"]
[WhiteTeam "Poland"]
[BlackTeam "Israel"]
[WhiteTeamCountry "POL"]
[BlackTeamCountry "ISR"]
[TimeControl "40/5400+30:1800+30"]

1. d4 Nf6 2. c4 g6 3. Nf3 Bg7 4. Nc3 d5 5. h4 dxc4 6. e4 c5 7. d5 b5 8. h5 O-O
9. hxg6 fxg6 10. e5 Ng4 11. d6 Bb7 12. Bg5 Nxe5 13. Nxe5 Qxd6 14. Ng4 Qe6+ 15.
Qe2 Qxe2+ 16. Bxe2 Bxg2 17. Rg1 Bc6 18. Bxe7 Re8 19. Bxc5 Nd7 20. Be3 h5 21.
Nh2 Ne5 22. O-O-O Rad8 23. Rxd8 Rxd8 24. Rd1 Nd3+ 25. Bxd3 cxd3 26. Rg1 Kf7 27.
Kd2 b4 28. Nd1 Be4 29. Rg5 Bf5 30. Nf3 Rc8 31. Nd4 Bxd4 32. Rxf5+ gxf5 33. Bxd4
h4 34. Kxd3 Ke6 35. Be3 Ke5 36. f4+ Kd5 37. Nf2 Rg8 38. Ke2 Rg3 39. Nh1 Rg2+
40. Nf2 a5 41. Bb6 a4 42. Bd8 h3 43. Kf3 Rg8 44. Bg5 h2 45. Kg2 Rc8 46. Kxh2
Rc2 47. Kg3 Rxb2 48. Nd3 Rb1 49. Kf3 b3 50. axb3 Rxb3 51. Ke2 a3 52. Bf6 a2 53.
Ne1 Ke4 54. Be5 Rh3 55. Nc2 Rh2+ 56. Kd1 Kd3 57. Ne1+ Ke4 58. Nc2 Rh1+ 59. Kd2
Rf1 60. Ke2 Rxf4 61. Bxf4 Kxf4 62. Kf2 Ke4 63. Ke2 Kf4 64. Kf2 Kg4 65. Kg2 f4
66. Kf2 f3 67. Na1 Kf4 68. Nc2 Ke4 69. Na1 Kd3 70. Kxf3 Kc3 71. Ke3 Kb2 72. Kd2
Kxa1 73. Kc2 1/2-1/2

[Event "ETCC Women 2013"]
[Site "Warsaw"]
[Date "2013.11.12"]
[Round "5"]
[White "Bhatia, Kanwal K"]
[Black "Nazarova, Anastasia"]
[Result "1/2-1/2"]
[ECO "B27"]
[WhiteElo "2039"]
[BlackElo "1727"]
[PlyCount "102"]
[EventDate "2013.??.??"]
[EventCountry "POL"]
[WhiteTeam "England"]
[BlackTeam "Finland"]
[WhiteTeamCountry "ENG"]
[BlackTeamCountry "FIN"]
[TimeControl "40/5400+30:1800+30"]

1. e4 {[%emt 0:00:00]} c5 {[%emt 0:00:00]} 2. Nf3 {[%emt 0:00:00]} g6 {[%emt 0:
00:00]} 3. c3 {[%emt 0:00:00]} Bg7 {[%emt 0:00:00]} 4. d4 {[%emt 0:00:00]} cxd4
{[%emt 0:00:00]} 5. cxd4 {[%emt 0:00:07]} d5 {[%emt 0:00:00]} 6. exd5 {[%emt 0:
00:15]} Nf6 {[%emt 0:00:05]} 7. Bb5+ {[%emt 0:00:26]} Nbd7 {[%emt 0:00:32]} 8.
d6 {[%emt 0:00:30]} exd6 {[%emt 0:00:05]} 9. Qe2+ {[%emt 0:00:12]} Qe7 {[%emt
0:01:13]} 10. Bf4 {[%emt 0:00:31]} Qxe2+ {[%emt 0:02:33]} 11. Bxe2 {[%emt 0:00:
07]} d5 {[%emt 0:00:24]} 12. Nc3 {[%emt 0:00:33]} O-O {[%emt 0:00:20]} 13. O-O
{[%emt 0:02:57]} Nb6 {[%emt 0:01:46]} 14. Nb5 {[%emt 0:04:41]} Bd7 {[%emt 0:03:
17]} 15. Rfe1 {[%emt 0:02:48]} Bxb5 {[%emt 0:02:27]} 16. Bxb5 {[%emt 0:00:13]}
a6 {[%emt 0:00:19]} 17. Bd3 {[%emt 0:01:53]} Rfe8 {[%emt 0:02:03]} 18. Rxe8+ {
[%emt 0:08:42]} Rxe8 {[%emt 0:00:41]} 19. Rc1 {[%emt 0:00:21]} Rc8 {[%emt 0:01:
23]} 20. Rxc8+ {[%emt 0:14:06]} Nxc8 {[%emt 0:00:02]} 21. Ne5 {[%emt 0:02:17]}
Ne7 {[%emt 0:06:15]} 22. Kf1 {[%emt 0:02:26]} Nh5 {[%emt 0:01:18]} 23. Be3 {
[%emt 0:01:40]} f5 {[%emt 0:01:46]} 24. g3 {[%emt 0:03:22]} Nf6 {[%emt 0:01:43]
} 25. f3 {[%emt 0:08:51]} Kf8 {[%emt 0:02:15]} 26. Ke2 {[%emt 0:02:01]} Ke8 {
[%emt 0:00:27]} 27. Bc2 {[%emt 0:00:52]} Nd7 {[%emt 0:02:20]} 28. f4 {[%emt 0:
20:50]} Nf6 {[%emt 0:04:00]} 29. Bb3 {[%emt 0:06:08]} Kd8 {[%emt 0:05:21]} 30.
Bd2 {[%emt 0:02:21]} Nc6 {[%emt 0:00:37]} 31. Kd3 {[%emt 0:10:53]} Kc7 {[%emt
0:00:48]} 32. h3 {[%emt 0:02:16]} Bf8 {[%emt 0:01:45]} 33. Be1 {[%emt 0:00:50]}
Bb4 {[%emt 0:03:53]} 34. Bxb4 {[%emt 0:00:28]} Nxb4+ {[%emt 0:00:01]} 35. Ke3 {
[%emt 0:00:55]} Nc6 {[%emt 0:00:25]} 36. Nd3 {[%emt 0:01:47]} b6 {[%emt 0:01:
07]} 37. Ne5 {[%emt 0:00:42]} Kd6 {[%emt 0:02:00]} 38. Bd1 {[%emt 0:00:55]} Nb4
{[%emt 0:04:38]} 39. a3 {[%emt 0:00:23]} Nc6 {[%emt 0:00:04]} 40. Be2 {[%emt 0:
00:00]} a5 {[%emt 0:00:00]} 41. g4 {[%emt 0:05:44]} Ne7 {[%emt 0:02:26]} 42. g5
{[%emt 0:02:25]} Ne4 {[%emt 0:02:24]} 43. Bb5 {[%emt 0:00:43]} Kc7 {[%emt 0:03:
56]} 44. Ba4 {[%emt 0:03:23]} Nd6 {[%emt 0:01:11]} 45. Kd2 {[%emt 0:02:14]}
Ne4+ {[%emt 0:00:07]} 46. Ke3 {[%emt 0:00:19]} Nd6 {[%emt 0:00:04]} 47. Kd3 {
[%emt 0:02:03]} b5 {[%emt 0:02:00]} 48. Bb3 {[%emt 0:00:27]} Nc4 {[%emt 0:01:
17]} 49. Kc3 {[%emt 0:00:41]} Nd6 {[%emt 0:01:38]} 50. Kd2 {[%emt 0:00:57]}
Nc4+ {[%emt 0:01:13]} 51. Kc3 {[%emt 0:00:31]} Nd6 {[%emt 0:00:04]} 1/2-1/2

[Event "ETCC Women 2013"]
[Site "Warsaw"]
[Date "2013.11.12"]
[Round "5"]
[White "Bojkovic, Natasa"]
[Black "Alexandrova, Olga"]
[Result "1/2-1/2"]
[ECO "B40"]
[WhiteElo "2405"]
[BlackElo "2427"]
[PlyCount "166"]
[EventDate "2013.??.??"]
[EventCountry "POL"]
[WhiteTeam "Serbia"]
[BlackTeam "Spain"]
[WhiteTeamCountry "SRB"]
[BlackTeamCountry "ESP"]
[TimeControl "40/5400+30:1800+30"]

1. e4 {[%emt 0:00:00]} c5 {[%emt 0:00:00]} 2. Nf3 {[%emt 0:00:00]} e6 {[%emt 0:
00:00]} 3. c3 {[%emt 0:00:00]} d5 {[%emt 0:00:00]} 4. exd5 {[%emt 0:00:09]}
Qxd5 {[%emt 0:00:00]} 5. d4 {[%emt 0:00:09]} Nf6 {[%emt 0:00:00]} 6. Bd3 {
[%emt 0:00:17]} Be7 {[%emt 0:00:33]} 7. O-O {[%emt 0:05:04]} O-O {[%emt 0:01:
16]} 8. Qe2 {[%emt 0:01:16]} Nc6 {[%emt 0:03:31]} 9. Be3 {[%emt 0:09:20]} Rd8 {
[%emt 0:05:34]} 10. a3 {[%emt 0:06:44]} b6 {[%emt 0:02:48]} 11. b4 {[%emt 0:08:
04]} Bb7 {[%emt 0:14:06]} 12. Nbd2 {[%emt 0:04:39]} cxd4 {[%emt 0:02:44]} 13.
cxd4 {[%emt 0:00:10]} Rac8 {[%emt 0:04:59]} 14. Rac1 {[%emt 0:11:34]} h6 {
[%emt 0:04:08]} 15. h3 {[%emt 0:01:17]} Bf8 {[%emt 0:02:34]} 16. Bc4 {[%emt 0:
06:25]} Qh5 {[%emt 0:06:02]} 17. Ba6 {[%emt 0:00:48]} Bxa6 {[%emt 0:06:01]} 18.
Qxa6 {[%emt 0:00:01]} Qd5 {[%emt 0:10:40]} 19. b5 {[%emt 0:05:01]} Ne7 {[%emt
0:01:10]} 20. Rxc8 {[%emt 0:10:17]} Rxc8 {[%emt 0:09:06]} 21. Qxa7 {[%emt 0:01:
47]} Qxb5 {[%emt 0:01:58]} 22. Rb1 {[%emt 0:08:40]} Qa5 {[%emt 0:03:51]} 23.
Qxb6 {[%emt 0:08:14]} Qxa3 {[%emt 0:00:18]} 24. Nf1 {[%emt 0:04:44]} Nfd5 {
[%emt 0:03:10]} 25. Qb3 {[%emt 0:02:37]} Qd6 {[%emt 0:03:45]} 26. Ne5 {[%emt 0:
01:00]} f6 {[%emt 0:03:23]} 27. Nc4 {[%emt 0:01:20]} Qd7 {[%emt 0:00:34]} 28.
Nfd2 {[%emt 0:01:21]} Nf5 {[%emt 0:02:20]} 29. Qb7 {[%emt 0:01:12]} Rc7 {[%emt
0:01:29]} 30. Qb8 {[%emt 0:00:57]} Nc3 {[%emt 0:02:19]} 31. Re1 {[%emt 0:01:22]
} Rb7 {[%emt 0:02:36]} 32. Qa8 {[%emt 0:00:38]} Nd5 {[%emt 0:00:18]} 33. Nf3 {
[%emt 0:00:17]} Ra7 {[%emt 0:00:51]} 34. Qb8 {[%emt 0:00:02]} Qc7 {[%emt 0:00:
48]} 35. Qxc7 {[%emt 0:01:00]} Rxc7 {[%emt 0:00:03]} 36. Nb2 {[%emt 0:00:43]}
Rc2 {[%emt 0:01:57]} 37. Nd1 {[%emt 0:00:36]} Bb4 {[%emt 0:00:23]} 38. Rf1 {
[%emt 0:00:05]} Kf7 {[%emt 0:01:40]} 39. g4 {[%emt 0:00:49]} Nd6 {[%emt 0:00:
59]} 40. Ne1 {[%emt 0:00:00]} Re2 {[%emt 0:00:00]} 41. Nd3 {[%emt 0:01:12]} Ba5
{[%emt 0:06:38]} 42. Kg2 {[%emt 0:08:04]} Nxe3+ {[%emt 0:01:32]} 43. Nxe3 {
[%emt 0:00:06]} Rd2 {[%emt 0:01:06]} 44. Rd1 {[%emt 0:18:31]} Rxd1 {[%emt 0:00:
45]} 45. Nxd1 {[%emt 0:00:01]} Nb5 {[%emt 0:05:12]} 46. d5 {[%emt 0:05:11]}
exd5 {[%emt 0:00:22]} 47. Ne3 {[%emt 0:00:10]} d4 {[%emt 0:02:09]} 48. Nc4 {
[%emt 0:00:50]} Bc7 {[%emt 0:01:46]} 49. Kf3 {[%emt 0:00:09]} Nc3 {[%emt 0:00:
38]} 50. Nc5 {[%emt 0:00:32]} Ke7 {[%emt 0:01:40]} 51. h4 {[%emt 0:01:06]} g6 {
[%emt 0:02:02]} 52. h5 {[%emt 0:00:19]} gxh5 {[%emt 0:00:38]} 53. gxh5 {[%emt
0:00:01]} f5 {[%emt 0:00:32]} 54. Nb3 {[%emt 0:00:44]} Nb5 {[%emt 0:00:23]} 55.
Ke2 {[%emt 0:01:00]} Ke6 {[%emt 0:00:36]} 56. Kd3 {[%emt 0:00:18]} Kd5 {[%emt
0:01:19]} 57. Ncd2 {[%emt 0:00:14]} Be5 {[%emt 0:00:27]} 58. Nf1 {[%emt 0:00:
53]} Nc7 {[%emt 0:00:35]} 59. f4 {[%emt 0:00:26]} Bxf4 {[%emt 0:03:42]} 60.
Nxd4 {[%emt 0:00:08]} Ke5 {[%emt 0:00:16]} 61. Nc6+ {[%emt 0:01:05]} Kf6 {
[%emt 0:00:46]} 62. Ke2 {[%emt 0:00:15]} Nd5 {[%emt 0:01:03]} 63. Kf3 {[%emt 0:
00:17]} Kg5 {[%emt 0:00:44]} 64. Nd8 {[%emt 0:00:56]} Kxh5 {[%emt 0:00:48]} 65.
Ne6 {[%emt 0:00:14]} Be5 {[%emt 0:01:39]} 66. Ne3 {[%emt 0:00:34]} Ne7 {[%emt
0:00:26]} 67. Nxf5 {[%emt 0:00:44]} Nxf5 {[%emt 0:00:10]} 68. Ke4 {[%emt 0:00:
04]} Kg4 {[%emt 0:01:50]} 69. Kxe5 {[%emt 0:00:02]} h5 {[%emt 0:00:10]} 70. Ke4
{[%emt 0:01:03]} h4 {[%emt 0:00:13]} 71. Nf4 {[%emt 0:00:19]} Nd6+ {[%emt 0:00:
41]} 72. Ke3 {[%emt 0:00:03]} Nc4+ {[%emt 0:00:32]} 73. Ke4 {[%emt 0:00:02]}
Kg3 {[%emt 0:00:52]} 74. Ne2+ {[%emt 0:00:56]} Kg2 {[%emt 0:00:50]} 75. Nf4+ {
[%emt 0:00:07]} Kf2 {[%emt 0:00:33]} 76. Nh3+ {[%emt 0:01:35]} Kg3 {[%emt 0:00:
07]} 77. Nf4 {[%emt 0:00:27]} Kg4 {[%emt 0:00:12]} 78. Nd3 {[%emt 0:00:13]} Nb2
{[%emt 0:00:27]} 79. Nxb2 {[%emt 0:01:10]} h3 {[%emt 0:00:29]} 80. Nd3 {[%emt
0:00:30]} Kg3 {[%emt 0:00:13]} 81. Ke3 {[%emt 0:00:19]} h2 {[%emt 0:00:14]} 82.
Nf2 {[%emt 0:00:16]} Kg2 {[%emt 0:00:05]} 83. Ke2 {[%emt 0:00:30]} Kg1 {[%emt
0:00:06]} 1/2-1/2

[Event "ETCC Women 2013"]
[Site "Warsaw"]
[Date "2013.11.12"]
[Round "5"]
[White "Borsuk, Angela"]
[Black "Toma, Katarzyna"]
[Result "0-1"]
[ECO "D91"]
[WhiteElo "2186"]
[BlackElo "2282"]
[PlyCount "144"]
[EventDate "2013.??.??"]
[EventCountry "POL"]
[WhiteTeam "Israel"]
[BlackTeam "Poland"]
[WhiteTeamCountry "ISR"]
[BlackTeamCountry "POL"]
[TimeControl "40/5400+30:1800+30"]

1. d4 {[%emt 0:00:00]} Nf6 {[%emt 0:00:00]} 2. c4 {[%emt 0:00:00]} g6 {[%emt 0:
00:00]} 3. Nc3 {[%emt 0:00:00]} d5 {[%emt 0:00:00]} 4. Nf3 {[%emt 0:00:00]} Bg7
{[%emt 0:00:00]} 5. Bg5 {[%emt 0:00:23]} dxc4 {[%emt 0:00:24]} 6. Qa4+ {[%emt
0:02:34]} c6 {[%emt 0:04:25]} 7. Qxc4 {[%emt 0:01:04]} O-O {[%emt 0:04:00]} 8.
e3 {[%emt 0:07:09]} Be6 {[%emt 0:14:33]} 9. Qd3 {[%emt 0:02:48]} Qa5 {[%emt 0:
02:19]} 10. Be2 {[%emt 0:05:10]} c5 {[%emt 0:00:24]} 11. Qb5 {[%emt 0:06:24]}
Qxb5 {[%emt 0:05:30]} 12. Nxb5 {[%emt 0:02:06]} Rc8 {[%emt 0:00:05]} 13. O-O {
[%emt 0:10:38]} Nbd7 {[%emt 0:03:11]} 14. Rfd1 {[%emt 0:06:03]} h6 {[%emt 0:08:
14]} 15. Bh4 {[%emt 0:08:11]} a6 {[%emt 0:08:23]} 16. Nc3 {[%emt 0:00:33]} g5 {
[%emt 0:04:49]} 17. Bg3 {[%emt 0:00:34]} g4 {[%emt 0:11:32]} 18. Ne5 {[%emt 0:
05:02]} cxd4 {[%emt 0:01:33]} 19. exd4 {[%emt 0:03:25]} Nb6 {[%emt 0:08:54]}
20. f3 {[%emt 0:01:26]} gxf3 {[%emt 0:00:27]} 21. Bxf3 {[%emt 0:00:13]} Nbd5 {
[%emt 0:00:42]} 22. Na4 {[%emt 0:03:31]} Bf5 {[%emt 0:02:03]} 23. Rdc1 {[%emt
0:02:43]} Rd8 {[%emt 0:03:13]} 24. Nc5 {[%emt 0:06:11]} b6 {[%emt 0:00:11]} 25.
Na4 {[%emt 0:01:45]} Be4 {[%emt 0:00:30]} 26. Be2 {[%emt 0:03:41]} Nd7 {[%emt
0:02:15]} 27. Bh5 {[%emt 0:09:25]} Nxe5 {[%emt 0:02:46]} 28. dxe5 {[%emt 0:04:
21]} Rac8 {[%emt 0:00:20]} 29. Rf1 {[%emt 0:02:40]} f5 {[%emt 0:01:12]} 30.
exf6 {[%emt 0:00:32]} Bxf6 {[%emt 0:00:02]} 31. Bf3 {[%emt 0:02:47]} Bxf3 {
[%emt 0:00:23]} 32. Rxf3 {[%emt 0:00:44]} b5 {[%emt 0:00:52]} 33. Nc3 {[%emt 0:
00:46]} Nxc3 {[%emt 0:00:06]} 34. bxc3 {[%emt 0:00:02]} Bxc3 {[%emt 0:01:29]}
35. Raf1 {[%emt 0:00:52]} Rd2 {[%emt 0:01:17]} 36. Bf4 {[%emt 0:01:16]} Rxa2 {
[%emt 0:00:22]} 37. Bxh6 {[%emt 0:00:25]} Bf6 {[%emt 0:00:14]} 38. Rg3+ {[%emt
0:01:00]} Kh7 {[%emt 0:00:41]} 39. Bg5 {[%emt 0:01:06]} Bd4+ {[%emt 0:01:35]}
40. Be3 {[%emt 0:00:00]} Bf6 {[%emt 0:00:00]} 41. Bg5 {[%emt 0:06:34]} Rc6 {
[%emt 0:09:55]} 42. Bxf6 {[%emt 0:04:43]} Rxf6 {[%emt 0:00:07]} 43. Re1 {[%emt
0:00:04]} Kh6 {[%emt 0:01:37]} 44. h3 {[%emt 0:01:46]} Rg6 {[%emt 0:02:53]} 45.
Rxg6+ {[%emt 0:02:08]} Kxg6 {[%emt 0:00:01]} 46. Rxe7 {[%emt 0:00:15]} b4 {
[%emt 0:00:04]} 47. Rb7 {[%emt 0:01:10]} a5 {[%emt 0:00:07]} 48. Rb5 {[%emt 0:
00:33]} Ra3 {[%emt 0:00:37]} 49. Kf2 {[%emt 0:09:24]} b3 {[%emt 0:02:25]} 50.
Ke2 {[%emt 0:02:44]} a4 {[%emt 0:00:35]} 51. Kd3 {[%emt 0:03:03]} Ra2 {[%emt 0:
04:30]} 52. Kc3 {[%emt 0:01:15]} Rxg2 {[%emt 0:01:38]} 53. Rb4 {[%emt 0:02:28]}
Rc2+ {[%emt 0:01:06]} 54. Kd3 {[%emt 0:00:07]} Rc1 {[%emt 0:01:03]} 55. Kd2 {
[%emt 0:00:33]} Rh1 {[%emt 0:01:03]} 56. h4 {[%emt 0:01:18]} Kh5 {[%emt 0:00:
07]} 57. Kc3 {[%emt 0:01:30]} Rxh4 {[%emt 0:00:28]} 58. Rb5+ {[%emt 0:00:08]}
Kg6 {[%emt 0:02:33]} 59. Ra5 {[%emt 0:00:08]} Kf6 {[%emt 0:00:41]} 60. Ra6+ {
[%emt 0:01:21]} Ke5 {[%emt 0:00:09]} 61. Ra5+ {[%emt 0:00:08]} Kd6 {[%emt 0:00:
07]} 62. Ra6+ {[%emt 0:00:16]} Kc5 {[%emt 0:00:13]} 63. Ra5+ {[%emt 0:00:29]}
Kb6 {[%emt 0:00:05]} 64. Ra8 {[%emt 0:00:02]} Rg4 {[%emt 0:02:29]} 65. Kb2 {
[%emt 0:00:29]} Rg2+ {[%emt 0:01:06]} 66. Kc3 {[%emt 0:01:11]} Rc2+ {[%emt 0:
00:59]} 67. Kd3 {[%emt 0:00:03]} Kb5 {[%emt 0:00:34]} 68. Rb8+ {[%emt 0:00:05]}
Ka5 {[%emt 0:00:09]} 69. Rb7 {[%emt 0:01:05]} Rc6 {[%emt 0:00:13]} 70. Kd2 {
[%emt 0:00:34]} Rb6 {[%emt 0:00:22]} 71. Ra7+ {[%emt 0:00:09]} Kb4 {[%emt 0:00:
05]} 72. Kc1 {[%emt 0:01:11]} Ka3 {[%emt 0:00:12]} 0-1

[Event "ETCC Women 2013"]
[Site "Warsaw"]
[Date "2013.11.12"]
[Round "5"]
[White "Brunello, Marina"]
[Black "Finnbogadottir, Tinna Kristin"]
[Result "1-0"]
[ECO "B01"]
[WhiteElo "2248"]
[BlackElo "1882"]
[PlyCount "73"]
[EventDate "2013.??.??"]
[EventCountry "POL"]
[WhiteTeam "Italy"]
[BlackTeam "Iceland"]
[WhiteTeamCountry "ITA"]
[BlackTeamCountry "ISL"]
[TimeControl "40/5400+30:1800+30"]

1. e4 {[%emt 0:00:00]} d5 {[%emt 0:00:00]} 2. exd5 {[%emt 0:00:00]} Nf6 {[%emt
0:00:00]} 3. c4 {[%emt 0:04:16]} c6 {[%emt 0:00:00]} 4. Nc3 {[%emt 0:00:15]}
cxd5 {[%emt 0:04:01]} 5. cxd5 {[%emt 0:01:01]} Nxd5 {[%emt 0:00:57]} 6. d4 {
[%emt 0:03:34]} Nc6 {[%emt 0:03:49]} 7. h3 {[%emt 0:05:50]} g6 {[%emt 0:01:02]}
8. Nf3 {[%emt 0:04:14]} Bg7 {[%emt 0:00:32]} 9. Bb5 {[%emt 0:03:27]} O-O {
[%emt 0:00:55]} 10. O-O {[%emt 0:01:07]} Bf5 {[%emt 0:03:22]} 11. Bg5 {[%emt 0:
05:29]} Nc7 {[%emt 0:06:50]} 12. Bxc6 {[%emt 0:03:03]} bxc6 {[%emt 0:00:08]}
13. Qa4 {[%emt 0:00:21]} Qd6 {[%emt 0:02:46]} 14. Rac1 {[%emt 0:05:54]} Rfb8 {
[%emt 0:09:39]} 15. b3 {[%emt 0:14:02]} Nb5 {[%emt 0:09:03]} 16. Rfe1 {[%emt 0:
05:35]} Bf6 {[%emt 0:03:10]} 17. Bxf6 {[%emt 0:02:56]} Qxf6 {[%emt 0:00:19]}
18. Ne5 {[%emt 0:04:37]} Rd8 {[%emt 0:09:28]} 19. Nxc6 {[%emt 0:03:58]} Qxc6 {
[%emt 0:01:37]} 20. Nxb5 {[%emt 0:00:18]} Qb6 {[%emt 0:02:25]} 21. Rxe7 {[%emt
0:06:06]} a6 {[%emt 0:00:36]} 22. Na3 {[%emt 0:04:08]} Rxd4 {[%emt 0:01:04]}
23. Re8+ {[%emt 0:00:37]} Kg7 {[%emt 0:01:59]} 24. Nc4 {[%emt 0:01:11]} Qa7 {
[%emt 0:02:14]} 25. Rxa8 {[%emt 0:01:08]} Qxa8 {[%emt 0:00:07]} 26. Qa5 {[%emt
0:00:52]} Rd5 {[%emt 0:01:52]} 27. Qc3+ {[%emt 0:00:18]} f6 {[%emt 0:03:29]}
28. Nb6 {[%emt 0:00:14]} Qd8 {[%emt 0:00:06]} 29. Nxd5 {[%emt 0:00:05]} Qxd5 {
[%emt 0:00:08]} 30. Qe3 {[%emt 0:00:39]} Qd6 {[%emt 0:01:15]} 31. Re1 {[%emt 0:
00:19]} Qc6 {[%emt 0:00:49]} 32. Qe7+ {[%emt 0:00:35]} Kh6 {[%emt 0:00:07]} 33.
Qf8+ {[%emt 0:00:46]} Kg5 {[%emt 0:00:18]} 34. Qb4 {[%emt 0:01:41]} Qd5 {[%emt
0:02:02]} 35. g3 {[%emt 0:01:13]} Kh6 {[%emt 0:01:26]} 36. Qh4+ {[%emt 0:00:15]
} Kg7 {[%emt 0:00:12]} 37. Re7+ {[%emt 0:00:03]} 1-0

[Event "ETCC Women 2013"]
[Site "Warsaw"]
[Date "2013.11.12"]
[Round "5"]
[White "Cemhan, Kardelen"]
[Black "Papp, Petra"]
[Result "1/2-1/2"]
[ECO "C45"]
[WhiteElo "1993"]
[BlackElo "2300"]
[PlyCount "94"]
[EventDate "2013.??.??"]
[EventCountry "POL"]
[WhiteTeam "Turkey"]
[BlackTeam "Hungary"]
[WhiteTeamCountry "TUR"]
[BlackTeamCountry "HUN"]
[TimeControl "40/5400+30:1800+30"]

1. e4 {[%emt 0:00:00]} e5 {[%emt 0:00:14]} 2. Nf3 {[%emt 0:00:00]} Nc6 {[%emt
0:00:09]} 3. d4 {[%emt 0:00:00]} exd4 {[%emt 0:00:44]} 4. Nxd4 {[%emt 0:00:00]}
Bc5 {[%emt 0:00:16]} 5. Nb3 {[%emt 0:00:00]} Bb6 {[%emt 0:01:12]} 6. Nc3 {
[%emt 0:00:47]} Nf6 {[%emt 0:00:37]} 7. Qe2 {[%emt 0:01:26]} O-O {[%emt 0:00:
48]} 8. Be3 {[%emt 0:01:56]} d5 {[%emt 0:01:49]} 9. Bxb6 {[%emt 0:04:18]} axb6
{[%emt 0:01:38]} 10. O-O-O {[%emt 0:00:30]} Re8 {[%emt 0:06:28]} 11. f3 {[%emt
0:07:11]} Na5 {[%emt 0:13:04]} 12. Nxa5 {[%emt 0:05:52]} Rxa5 {[%emt 0:02:30]}
13. Qd2 {[%emt 0:03:05]} c6 {[%emt 0:05:41]} 14. Bc4 {[%emt 0:03:53]} b5 {
[%emt 0:10:37]} 15. Bb3 {[%emt 0:02:15]} d4 {[%emt 0:03:16]} 16. e5 {[%emt 0:
08:57]} Nd7 {[%emt 0:05:50]} 17. Ne4 {[%emt 0:00:58]} Nxe5 {[%emt 0:08:04]} 18.
Qxd4 {[%emt 0:02:46]} Qxd4 {[%emt 0:04:23]} 19. Rxd4 {[%emt 0:00:02]} Nc4 {
[%emt 0:02:50]} 20. Nd6 {[%emt 0:03:44]} Nxd6 {[%emt 0:00:52]} 21. Rxd6 {[%emt
0:00:02]} Kf8 {[%emt 0:02:39]} 22. Rhd1 {[%emt 0:04:36]} Ra8 {[%emt 0:02:00]}
23. a3 {[%emt 0:02:39]} Bf5 {[%emt 0:02:01]} 24. g4 {[%emt 0:03:35]} Be6 {
[%emt 0:04:12]} 25. Bxe6 {[%emt 0:02:22]} fxe6 {[%emt 0:00:10]} 26. R1d3 {
[%emt 0:05:46]} e5 {[%emt 0:02:27]} 27. Rd7 {[%emt 0:03:52]} Re7 {[%emt 0:00:
40]} 28. Rxe7 {[%emt 0:04:22]} Kxe7 {[%emt 0:00:01]} 29. Kd2 {[%emt 0:00:14]}
Rf8 {[%emt 0:02:08]} 30. Ke3 {[%emt 0:00:33]} g5 {[%emt 0:03:01]} 31. Rd2 {
[%emt 0:07:48]} Rf6 {[%emt 0:01:59]} 32. b3 {[%emt 0:07:02]} h5 {[%emt 0:04:22]
} 33. h3 {[%emt 0:00:50]} Rf4 {[%emt 0:02:00]} 34. Rg2 {[%emt 0:01:43]} Kf6 {
[%emt 0:00:46]} 35. Rd2 {[%emt 0:01:10]} Ke7 {[%emt 0:00:06]} 36. Rg2 {[%emt 0:
00:32]} Kf6 {[%emt 0:00:51]} 37. Rd2 {[%emt 0:00:22]} hxg4 {[%emt 0:05:04]} 38.
hxg4 {[%emt 0:02:41]} e4 {[%emt 0:00:53]} 39. fxe4 {[%emt 0:00:22]} Ke5 {[%emt
0:01:47]} 40. Rd7 {[%emt 0:00:00]} Rxe4+ {[%emt 0:00:00]} 41. Kf3 {[%emt 0:02:
59]} Rf4+ {[%emt 0:02:17]} 42. Kg3 {[%emt 0:00:02]} Rd4 {[%emt 0:05:29]} 43.
Re7+ {[%emt 0:03:58]} Kd6 {[%emt 0:06:23]} 44. Rg7 {[%emt 0:07:49]} Rd2 {[%emt
0:00:54]} 45. Rxg5 {[%emt 0:00:11]} Rxc2 {[%emt 0:00:05]} 46. Rf5 {[%emt 0:00:
22]} Ra2 {[%emt 0:02:21]} 47. g5 {[%emt 0:01:23]} Rxa3 {[%emt 0:03:48]} 1/2-1/2